[Event "November 21 Late 2023"]
[Site "https://www.chess.com"]
[Date "2023.11.21"]
[Round "6"]
[White "Manukyan, Sargis A."]
[Black "Gokerkan, Cem Kaan"]
[Result "1-0"]
[Board "23"]
[TimeControl "180+1"]
[WhiteFideId "13303970"]
[BlackFideId "6336760"]
[WhiteElo "2204"]
[BlackElo "2365"]
[WhiteTeam "ARM"]
[BlackTeam "TUR"]
[WhiteClock "0:00:08"]
[BlackClock "0:00:00"]

1. d4 {[%clk 0:03:00]}  Nf6 {[%clk 0:03:00]} 2. c4 {[%clk 0:03:01]}  e6 {[%clk 0:03:00]} 3. Nc3 {[%clk 0:03:01]}  Bb4 {[%clk 0:02:58]} 4. e3 {[%clk 0:03:02]}  O-O {[%clk 0:02:58]} 5. a3 {[%clk 0:03:01]}  Be7 {[%clk 0:02:55]} 6. b4 {[%clk 0:02:59]}  a5 {[%clk 0:02:52]} 7. b5 {[%clk 0:03:00]}  d5 {[%clk 0:02:47]} 8. c5 {[%clk 0:02:59]}  c6 {[%clk 0:02:44]} 9. a4 {[%clk 0:02:57]}  Nbd7 {[%clk 0:02:43]} 10. f4 {[%clk 0:02:54]}  Ne4 {[%clk 0:02:41]} 11. Qc2 {[%clk 0:02:46]}  Nxc3 {[%clk 0:02:05]} 12. Qxc3 {[%clk 0:02:46]}  Nf6 {[%clk 0:02:00]} 13. Bd3 {[%clk 0:02:43]}  Bd7 {[%clk 0:02:00]} 14. b6 {[%clk 0:02:33]}  Ne4 {[%clk 0:01:57]} 15. Qc2 {[%clk 0:02:07]}  f5 {[%clk 0:01:34]} 16. Nf3 {[%clk 0:02:07]}  Be8 {[%clk 0:01:33]} 17. Nd2 {[%clk 0:01:57]}  Bh5 {[%clk 0:01:09]} 18. Nxe4 {[%clk 0:01:55]}  fxe4 {[%clk 0:01:08]} 19. Be2 {[%clk 0:01:56]}  Bxe2 {[%clk 0:01:07]} 20. Qxe2 {[%clk 0:01:57]}  Qe8 {[%clk 0:01:03]} 21. Bd2 {[%clk 0:01:56]}  Qg6 {[%clk 0:01:01]} 22. O-O-O {[%clk 0:01:54]}  Qf6 {[%clk 0:01:00]} 23. Kc2 {[%clk 0:01:47]}  Kf7 {[%clk 0:00:57]} 24. g4 {[%clk 0:01:46]}  Ke8 {[%clk 0:00:57]} 25. h4 {[%clk 0:01:42]}  Kd7 {[%clk 0:00:57]} 26. h5 {[%clk 0:01:41]}  Qf7 {[%clk 0:00:53]} 27. Bc3 {[%clk 0:01:37]}  Qe8 {[%clk 0:00:50]} 28. Rdg1 {[%clk 0:01:29]}  Qf7 {[%clk 0:00:50]} 29. Qg2 {[%clk 0:01:28]}  Qg8 {[%clk 0:00:50]} 30. Qh3 {[%clk 0:01:29]}  Rf7 {[%clk 0:00:47]} 31. Rf1 {[%clk 0:01:28]}  Qf8 {[%clk 0:00:44]} 32. Rf2 {[%clk 0:01:27]}  Bxc5 {[%clk 0:00:39]} 33. dxc5 {[%clk 0:01:27]}  Qxc5 {[%clk 0:00:40]} 34. g5 {[%clk 0:01:23]}  Rf5 {[%clk 0:00:36]} 35. g6 {[%clk 0:01:19]}  h6 {[%clk 0:00:36]} 36. Rb1 {[%clk 0:01:14]}  Qc4 {[%clk 0:00:31]} 37. Rb3 {[%clk 0:00:57]}  c5 {[%clk 0:00:27]} 38. Rd2 {[%clk 0:00:51]}  Qxa4 {[%clk 0:00:25]} 39. Kb2 {[%clk 0:00:38]}  Ra6 {[%clk 0:00:23]} 40. Qf1 {[%clk 0:00:14]}  c4 {[%clk 0:00:21]} 41. Ra3 {[%clk 0:00:11]}  Rxb6+ {[%clk 0:00:22]} 42. Ka2 {[%clk 0:00:11]}  Qc6 {[%clk 0:00:20]} 43. Bxg7 {[%clk 0:00:10]}  Rxh5 {[%clk 0:00:13]} 44. Bd4 {[%clk 0:00:10]}  Rb3 {[%clk 0:00:12]} 45. g7 {[%clk 0:00:09]}  Rxa3+ {[%clk 0:00:11]} 46. Kxa3 {[%clk 0:00:09]}  Qc8 {[%clk 0:00:09]} 47. Qg2 {[%clk 0:00:08]}  Qg8 {[%clk 0:00:08]} 48. Qg6 {[%clk 0:00:08]}  Rh1 {[%clk 0:00:07]} 49. f5 {[%clk 0:00:08]}  exf5 {[%clk 0:00:00]} 50. Bc5 {[%clk 0:00:08]} 1-0

[Event "November 21 Late 2023"]
[Site "https://www.chess.com"]
[Date "2023.11.21"]
[Round "6"]
[White "Wadsworth, Matthew J"]
[Black "Hakobyan, Aram"]
[Result "1/2-1/2"]
[Board "24"]
[TimeControl "180+1"]
[WhiteFideId "415804"]
[BlackFideId "13306677"]
[WhiteElo "2266"]
[BlackElo "2584"]
[WhiteTeam "ENG"]
[BlackTeam "ARM"]
[WhiteClock "0:00:04"]
[BlackClock "0:01:11"]

1. Nf3 {[%clk 0:03:00]}  g6 {[%clk 0:03:00]} 2. g3 {[%clk 0:02:58]}  Bg7 {[%clk 0:03:01]} 3. Bg2 {[%clk 0:02:59]}  Nf6 {[%clk 0:03:01]} 4. c4 {[%clk 0:02:59]}  O-O {[%clk 0:03:02]} 5. Nc3 {[%clk 0:02:59]}  d6 {[%clk 0:03:03]} 6. O-O {[%clk 0:02:59]}  Bf5 {[%clk 0:03:04]} 7. h3 {[%clk 0:02:56]}  Nc6 {[%clk 0:03:03]} 8. d3 {[%clk 0:02:56]}  Qc8 {[%clk 0:03:02]} 9. Kh2 {[%clk 0:02:55]}  e5 {[%clk 0:03:03]} 10. Bg5 {[%clk 0:02:47]}  h6 {[%clk 0:03:02]} 11. Bxf6 {[%clk 0:02:47]}  Bxf6 {[%clk 0:03:03]} 12. Rb1 {[%clk 0:02:46]}  Bg7 {[%clk 0:03:04]} 13. b4 {[%clk 0:02:45]}  Be6 {[%clk 0:03:04]} 14. b5 {[%clk 0:02:44]}  Ne7 {[%clk 0:03:04]} 15. Nd2 {[%clk 0:02:35]}  f5 {[%clk 0:03:05]} 16. a4 {[%clk 0:02:35]}  Rb8 {[%clk 0:03:05]} 17. a5 {[%clk 0:02:34]}  g5 {[%clk 0:03:05]} 18. e3 {[%clk 0:02:28]}  Qe8 {[%clk 0:03:05]} 19. Nd5 {[%clk 0:02:12]}  Nxd5 {[%clk 0:03:04]} 20. Bxd5 {[%clk 0:02:12]}  Bxd5 {[%clk 0:02:57]} 21. cxd5 {[%clk 0:02:12]}  Qg6 {[%clk 0:02:58]} 22. Rc1 {[%clk 0:01:59]}  Rf7 {[%clk 0:02:57]} 23. e4 {[%clk 0:01:44]}  f4 {[%clk 0:02:30]} 24. g4 {[%clk 0:01:42]}  Rbf8 {[%clk 0:02:22]} 25. f3 {[%clk 0:01:40]}  h5 {[%clk 0:02:23]} 26. Kg2 {[%clk 0:01:26]}  Bf6 {[%clk 0:02:23]} 27. Qe1 {[%clk 0:00:33]}  Rh7 {[%clk 0:02:22]} 28. Rh1 {[%clk 0:00:31]}  Bd8 {[%clk 0:02:23]} 29. Qe2 {[%clk 0:00:26]}  Rh6 {[%clk 0:02:18]} 30. Rcf1 {[%clk 0:00:24]}  Kg7 {[%clk 0:02:18]} 31. Nb3 {[%clk 0:00:23]}  Rfh8 {[%clk 0:02:19]} 32. d4 {[%clk 0:00:22]}  Qh7 {[%clk 0:02:11]} 33. Qd3 {[%clk 0:00:15]}  hxg4 {[%clk 0:02:00]} 34. fxg4 {[%clk 0:00:14]}  Bf6 {[%clk 0:02:01]} 35. dxe5 {[%clk 0:00:12]}  Bxe5 {[%clk 0:02:02]} 36. Nd4 {[%clk 0:00:13]}  Bxd4 {[%clk 0:01:44]} 37. Qxd4+ {[%clk 0:00:13]}  Kg8 {[%clk 0:01:45]} 38. Rf3 {[%clk 0:00:10]}  Rh4 {[%clk 0:01:46]} 39. Qxa7 {[%clk 0:00:09]}  Rxg4+ {[%clk 0:01:46]} 40. Kf1 {[%clk 0:00:09]}  Qe7 {[%clk 0:01:20]} 41. Qb8+ {[%clk 0:00:08]}  Kg7 {[%clk 0:01:21]} 42. Qxh8+ {[%clk 0:00:07]}  Kxh8 {[%clk 0:01:22]} 43. hxg4+ {[%clk 0:00:07]}  Kg7 {[%clk 0:01:23]} 44. Rfh3 {[%clk 0:00:07]}  Qxe4 {[%clk 0:01:23]} 45. Rh7+ {[%clk 0:00:06]}  Kg8 {[%clk 0:01:14]} 46. Rh8+ {[%clk 0:00:06]}  Kg7 {[%clk 0:01:15]} 47. R1h7+ {[%clk 0:00:07]}  Kg6 {[%clk 0:01:15]} 48. Rh6+ {[%clk 0:00:06]}  Kf7 {[%clk 0:01:16]} 49. R8h7+ {[%clk 0:00:05]}  Kg8 {[%clk 0:01:16]} 50. Rh8+ {[%clk 0:00:05]}  Kg7 {[%clk 0:01:17]} 51. R6h7+ {[%clk 0:00:04]}  Kf6 {[%clk 0:01:17]} 52. Rh6+ {[%clk 0:00:04]}  Kf7 {[%clk 0:01:17]} 53. R8h7+ {[%clk 0:00:04]}  Kg8 {[%clk 0:01:11]} 54. Rh8+ {[%clk 0:00:04]}  Kg7 {[%clk 0:01:11]} 55. R6h7+ {[%clk 0:00:04]} 1/2-1/2

[Event "November 21 Late 2023"]
[Site "https://www.chess.com"]
[Date "2023.11.21"]
[Round "6"]
[White "Rasulov, Vugar"]
[Black "Vasquez Vargas, Henry Richard"]
[Result "1-0"]
[Board "26"]
[TimeControl "180+1"]
[WhiteFideId "13402390"]
[BlackFideId "3836878"]
[WhiteElo "2517"]
[BlackElo "2012"]
[WhiteTeam "AZE"]
[BlackTeam "PER"]
[WhiteClock "0:00:33"]
[BlackClock "0:00:01"]

1. h4 {[%clk 0:03:00]}  d5 {[%clk 0:02:58]} 2. h5 {[%clk 0:03:01]}  h6 {[%clk 0:02:57]} 3. d4 {[%clk 0:03:01]}  Nf6 {[%clk 0:02:55]} 4. c4 {[%clk 0:03:02]}  c6 {[%clk 0:02:49]} 5. e3 {[%clk 0:02:59]}  Bg4 {[%clk 0:02:39]} 6. Be2 {[%clk 0:02:59]}  Bxe2 {[%clk 0:02:39]} 7. Qxe2 {[%clk 0:03:00]}  e6 {[%clk 0:02:39]} 8. Nc3 {[%clk 0:02:59]}  Bb4 {[%clk 0:02:38]} 9. Bd2 {[%clk 0:02:59]}  Nbd7 {[%clk 0:02:37]} 10. Nf3 {[%clk 0:02:57]}  a5 {[%clk 0:02:36]} 11. Rc1 {[%clk 0:02:52]}  Bxc3 {[%clk 0:02:33]} 12. Bxc3 {[%clk 0:02:52]}  Ne4 {[%clk 0:02:34]} 13. Nd2 {[%clk 0:02:52]}  Nxd2 {[%clk 0:02:29]} 14. Bxd2 {[%clk 0:02:49]}  O-O {[%clk 0:02:29]} 15. g4 {[%clk 0:02:42]}  dxc4 {[%clk 0:02:27]} 16. Rxc4 {[%clk 0:02:35]}  e5 {[%clk 0:02:25]} 17. dxe5 {[%clk 0:02:26]}  Nxe5 {[%clk 0:02:22]} 18. Rd4 {[%clk 0:02:27]}  Qe7 {[%clk 0:02:11]} 19. f4 {[%clk 0:02:25]}  Nd7 {[%clk 0:02:10]} 20. Qf3 {[%clk 0:02:17]}  Nc5 {[%clk 0:01:47]} 21. O-O {[%clk 0:02:11]}  Rfe8 {[%clk 0:01:34]} 22. Kg2 {[%clk 0:02:03]}  Ne4 {[%clk 0:01:34]} 23. Be1 {[%clk 0:01:56]}  Rad8 {[%clk 0:01:31]} 24. Bxa5 {[%clk 0:01:52]}  Rxd4 {[%clk 0:01:31]} 25. exd4 {[%clk 0:01:53]}  Ra8 {[%clk 0:01:31]} 26. Re1 {[%clk 0:01:46]}  f5 {[%clk 0:01:24]} 27. gxf5 {[%clk 0:01:45]}  Rxa5 {[%clk 0:01:24]} 28. Rxe4 {[%clk 0:01:44]}  Qf6 {[%clk 0:01:24]} 29. a3 {[%clk 0:01:33]}  Qxf5 {[%clk 0:01:07]} 30. Re8+ {[%clk 0:01:33]}  Kh7 {[%clk 0:01:07]} 31. Re5 {[%clk 0:01:34]}  Qc2+ {[%clk 0:00:58]} 32. Kg3 {[%clk 0:01:31]}  Ra4 {[%clk 0:00:46]} 33. Qe3 {[%clk 0:01:19]}  Rc4 {[%clk 0:00:21]} 34. Re7 {[%clk 0:01:14]}  Qb1 {[%clk 0:00:16]} 35. Kg4 {[%clk 0:00:53]}  Qd1+ {[%clk 0:00:14]} 36. Qf3 {[%clk 0:00:44]}  Qxd4 {[%clk 0:00:12]} 37. Rxb7 {[%clk 0:00:42]}  Qg1+ {[%clk 0:00:10]} 38. Kh3 {[%clk 0:00:41]}  Rd4 {[%clk 0:00:03]} 39. Rb4 {[%clk 0:00:35]}  Rd5 {[%clk 0:00:03]} 40. Qe4+ {[%clk 0:00:34]}  g6 {[%clk 0:00:01]} 41. Rb7+ {[%clk 0:00:33]}  Kg8 {[%clk 0:00:01]} 42. Qe8# {[%clk 0:00:33]} 1-0

[Event "November 21 Late 2023"]
[Site "https://www.chess.com"]
[Date "2023.11.21"]
[Round "6"]
[White "MKlose11"]
[Black "Rustemov, Alexander"]
[Result "1/2-1/2"]
[Board "28"]
[TimeControl "180+1"]
[BlackFideId "4119002"]
[WhiteElo "2652"]
[BlackElo "2863"]
[BlackTeam "RUS"]
[WhiteClock "0:00:04"]
[BlackClock "0:00:04"]

1. e4 {[%clk 0:03:00]}  e6 {[%clk 0:02:58]} 2. Nf3 {[%clk 0:02:57]}  d5 {[%clk 0:02:57]} 3. e5 {[%clk 0:02:58]}  c5 {[%clk 0:02:57]} 4. b4 {[%clk 0:02:58]}  cxb4 {[%clk 0:02:58]} 5. a3 {[%clk 0:02:56]}  Qa5 {[%clk 0:02:57]} 6. d4 {[%clk 0:02:53]}  Bd7 {[%clk 0:02:56]} 7. Bd3 {[%clk 0:02:52]}  Bb5 {[%clk 0:02:54]} 8. O-O {[%clk 0:02:52]}  Nc6 {[%clk 0:02:48]} 9. Bxb5 {[%clk 0:02:30]}  Qxb5 {[%clk 0:02:46]} 10. axb4 {[%clk 0:02:31]}  Bxb4 {[%clk 0:02:44]} 11. c3 {[%clk 0:02:31]}  Be7 {[%clk 0:02:41]} 12. Na3 {[%clk 0:02:29]}  Qb6 {[%clk 0:02:35]} 13. Rb1 {[%clk 0:02:27]}  Qc7 {[%clk 0:02:35]} 14. Nb5 {[%clk 0:02:25]}  Qd7 {[%clk 0:02:35]} 15. Bg5 {[%clk 0:02:16]}  Bf8 {[%clk 0:02:21]} 16. Qa4 {[%clk 0:02:01]}  b6 {[%clk 0:02:17]} 17. Rfc1 {[%clk 0:01:48]}  h6 {[%clk 0:01:31]} 18. Be3 {[%clk 0:01:43]}  Rc8 {[%clk 0:01:16]} 19. c4 {[%clk 0:01:28]}  Kd8 {[%clk 0:01:09]} 20. cxd5 {[%clk 0:01:23]}  exd5 {[%clk 0:01:07]} 21. Ra1 {[%clk 0:01:16]}  a5 {[%clk 0:00:58]} 22. Qb3 {[%clk 0:01:03]}  Bb4 {[%clk 0:00:54]} 23. Bd2 {[%clk 0:01:01]}  Nge7 {[%clk 0:00:48]} 24. Bxb4 {[%clk 0:00:58]}  Nxb4 {[%clk 0:00:44]} 25. Nd6 {[%clk 0:00:56]}  Rxc1+ {[%clk 0:00:38]} 26. Rxc1 {[%clk 0:00:57]}  Nec6 {[%clk 0:00:38]} 27. h3 {[%clk 0:00:50]}  Ke7 {[%clk 0:00:37]} 28. Qe3 {[%clk 0:00:48]}  Rd8 {[%clk 0:00:34]} 29. Qf4 {[%clk 0:00:48]}  Kf8 {[%clk 0:00:35]} 30. g4 {[%clk 0:00:45]}  Qe6 {[%clk 0:00:33]} 31. Kh2 {[%clk 0:00:42]}  Kg8 {[%clk 0:00:32]} 32. Rg1 {[%clk 0:00:40]}  g5 {[%clk 0:00:32]} 33. Qg3 {[%clk 0:00:29]}  f6 {[%clk 0:00:30]} 34. Nf5 {[%clk 0:00:27]}  Kh7 {[%clk 0:00:30]} 35. exf6 {[%clk 0:00:24]}  Rd7 {[%clk 0:00:26]} 36. h4 {[%clk 0:00:23]}  Qxf6 {[%clk 0:00:26]} 37. hxg5 {[%clk 0:00:22]}  hxg5 {[%clk 0:00:26]} 38. Kg2 {[%clk 0:00:22]}  Kg8 {[%clk 0:00:23]} 39. Rh1 {[%clk 0:00:22]}  Rh7 {[%clk 0:00:19]} 40. Re1 {[%clk 0:00:21]}  Rd7 {[%clk 0:00:17]} 41. Re8+ {[%clk 0:00:17]}  Kf7 {[%clk 0:00:16]} 42. Rc8 {[%clk 0:00:18]}  Ne7 {[%clk 0:00:16]} 43. Nxe7 {[%clk 0:00:11]}  Rxe7 {[%clk 0:00:16]} 44. Qh3 {[%clk 0:00:10]}  Ke6 {[%clk 0:00:11]} 45. Ne5 {[%clk 0:00:05]}  Kd6 {[%clk 0:00:08]} 46. Qh5 {[%clk 0:00:04]}  a4 {[%clk 0:00:05]} 47. Rd8+ {[%clk 0:00:04]}  Kc7 {[%clk 0:00:04]} 48. Ra8 {[%clk 0:00:05]}  Kb7 {[%clk 0:00:05]} 49. Rxa4 {[%clk 0:00:04]}  Nc6 {[%clk 0:00:06]} 50. Nxc6 {[%clk 0:00:02]}  Kxc6 {[%clk 0:00:06]} 51. Qh3 {[%clk 0:00:02]}  Rf7 {[%clk 0:00:06]} 52. Qc3+ {[%clk 0:00:02]}  Kb7 {[%clk 0:00:06]} 53. Qe3 {[%clk 0:00:03]}  Qf4 {[%clk 0:00:06]} 54. Qe2 {[%clk 0:00:01]}  Qe4+ {[%clk 0:00:06]} 55. Qxe4 {[%clk 0:00:01]}  dxe4 {[%clk 0:00:07]} 56. d5 {[%clk 0:00:02]}  b5 {[%clk 0:00:06]} 57. Rxe4 {[%clk 0:00:02]}  Kb6 {[%clk 0:00:06]} 58. d6 {[%clk 0:00:02]}  Kc5 {[%clk 0:00:05]} 59. Re7 {[%clk 0:00:02]}  Rf6 {[%clk 0:00:05]} 60. d7 {[%clk 0:00:02]}  Rd6 {[%clk 0:00:05]} 61. Re5+ {[%clk 0:00:02]}  Kc4 {[%clk 0:00:05]} 62. Rxg5 {[%clk 0:00:03]}  Rxd7 {[%clk 0:00:05]} 63. Rg6 {[%clk 0:00:03]}  Kc5 {[%clk 0:00:04]} 64. Rg8 {[%clk 0:00:03]}  Rb7 {[%clk 0:00:04]} 65. Rc8+ {[%clk 0:00:03]}  Kd4 {[%clk 0:00:05]} 66. Rc1 {[%clk 0:00:03]}  b4 {[%clk 0:00:05]} 67. Kg3 {[%clk 0:00:04]}  b3 {[%clk 0:00:05]} 68. f4 {[%clk 0:00:04]}  Kd3 {[%clk 0:00:04]} 69. g5 {[%clk 0:00:03]}  b2 {[%clk 0:00:03]} 70. Rb1 {[%clk 0:00:04]}  Kc2 {[%clk 0:00:03]} 71. Rf1 {[%clk 0:00:03]}  Rd7 {[%clk 0:00:02]} 72. Rf2+ {[%clk 0:00:02]}  Rd2 {[%clk 0:00:02]} 73. Rf1 {[%clk 0:00:03]}  Rd1 {[%clk 0:00:02]} 74. Rf2+ {[%clk 0:00:03]}  Rd2 {[%clk 0:00:02]} 75. Rf1 {[%clk 0:00:04]}  Rd1 {[%clk 0:00:03]} 76. Rf2+ {[%clk 0:00:04]}  Rd2 {[%clk 0:00:04]} 1/2-1/2

[Event "November 21 Late 2023"]
[Site "https://www.chess.com"]
[Date "2023.11.21"]
[Round "6"]
[White "Erdogan, Anil Berk"]
[Black "Eljanov, Pavel"]
[Result "0-1"]
[Board "31"]
[TimeControl "180+1"]
[WhiteFideId "6348173"]
[BlackFideId "14102951"]
[WhiteElo "2007"]
[BlackElo "2598"]
[WhiteTeam "TUR"]
[BlackTeam "UKR"]
[WhiteClock "0:00:18"]
[BlackClock "0:00:59"]

1. e4 {[%clk 0:03:00]}  c6 {[%clk 0:03:00]} 2. d4 {[%clk 0:03:00]}  d5 {[%clk 0:03:00]} 3. exd5 {[%clk 0:03:01]}  cxd5 {[%clk 0:03:00]} 4. c4 {[%clk 0:03:02]}  Nf6 {[%clk 0:03:00]} 5. Nc3 {[%clk 0:03:03]}  Nc6 {[%clk 0:02:59]} 6. Bg5 {[%clk 0:03:03]}  dxc4 {[%clk 0:02:56]} 7. Bxc4 {[%clk 0:03:03]}  h6 {[%clk 0:02:55]} 8. Be3 {[%clk 0:02:47]}  e6 {[%clk 0:02:53]} 9. Nf3 {[%clk 0:02:41]}  Bd6 {[%clk 0:02:52]} 10. O-O {[%clk 0:02:32]}  O-O {[%clk 0:02:52]} 11. h3 {[%clk 0:02:26]}  b6 {[%clk 0:02:46]} 12. d5 {[%clk 0:02:25]}  Na5 {[%clk 0:02:46]} 13. b3 {[%clk 0:02:06]}  Nxc4 {[%clk 0:02:36]} 14. bxc4 {[%clk 0:02:05]}  exd5 {[%clk 0:02:20]} 15. Nxd5 {[%clk 0:01:54]}  Bb7 {[%clk 0:02:16]} 16. Qd3 {[%clk 0:01:46]}  Nxd5 {[%clk 0:01:58]} 17. cxd5 {[%clk 0:01:45]}  Bxd5 {[%clk 0:01:58]} 18. Rfd1 {[%clk 0:01:18]}  Bxf3 {[%clk 0:01:57]} 19. gxf3 {[%clk 0:01:19]}  Be5 {[%clk 0:01:52]} 20. Rac1 {[%clk 0:01:16]}  Qxd3 {[%clk 0:01:44]} 21. Rxd3 {[%clk 0:01:15]}  Rac8 {[%clk 0:01:44]} 22. f4 {[%clk 0:01:10]}  Rxc1+ {[%clk 0:01:38]} 23. Bxc1 {[%clk 0:01:11]}  Bf6 {[%clk 0:01:38]} 24. Kg2 {[%clk 0:01:04]}  Rc8 {[%clk 0:01:35]} 25. Be3 {[%clk 0:00:59]}  Rc4 {[%clk 0:01:23]} 26. Ra3 {[%clk 0:00:57]}  Rc7 {[%clk 0:01:17]} 27. Ra6 {[%clk 0:00:56]}  Kf8 {[%clk 0:01:13]} 28. a4 {[%clk 0:00:55]}  Bc3 {[%clk 0:01:13]} 29. Kf3 {[%clk 0:00:52]}  Ke7 {[%clk 0:01:11]} 30. Ke4 {[%clk 0:00:47]}  Kd6 {[%clk 0:01:08]} 31. f5 {[%clk 0:00:39]}  Kc6 {[%clk 0:01:05]} 32. Bf4 {[%clk 0:00:22]}  Re7+ {[%clk 0:01:04]} 33. Kd3 {[%clk 0:00:23]}  Kb7 {[%clk 0:01:04]} 34. Rxa7+ {[%clk 0:00:21]}  Kxa7 {[%clk 0:01:04]} 35. Kxc3 {[%clk 0:00:22]}  Re4 {[%clk 0:01:03]} 36. Be3 {[%clk 0:00:18]}  Rxa4 {[%clk 0:01:01]} 37. f6 {[%clk 0:00:19]}  gxf6 {[%clk 0:01:00]} 38. Bxh6 {[%clk 0:00:18]}  Rh4 {[%clk 0:00:59]} 0-1

[Event "November 21 Late 2023"]
[Site "https://www.chess.com"]
[Date "2023.11.21"]
[Round "6"]
[White "Stoyanov, Tsvetan"]
[Black "elmusmolamas"]
[Result "0-1"]
[Board "33"]
[TimeControl "180+1"]
[WhiteFideId "2917173"]
[WhiteElo "2390"]
[BlackElo "2579"]
[WhiteTeam "BUL"]
[WhiteClock "0:00:07"]
[BlackClock "0:00:04"]

1. e4 {[%clk 0:02:59]}  e6 {[%clk 0:03:00]} 2. d3 {[%clk 0:02:58]}  d5 {[%clk 0:03:01]} 3. Nd2 {[%clk 0:02:59]}  g6 {[%clk 0:02:57]} 4. Ngf3 {[%clk 0:02:59]}  Bg7 {[%clk 0:02:57]} 5. g3 {[%clk 0:02:59]}  c5 {[%clk 0:02:57]} 6. Bg2 {[%clk 0:03:00]}  Nc6 {[%clk 0:02:58]} 7. O-O {[%clk 0:03:00]}  Nge7 {[%clk 0:02:59]} 8. Rb1 {[%clk 0:02:55]}  O-O {[%clk 0:02:58]} 9. a3 {[%clk 0:02:55]}  a5 {[%clk 0:02:58]} 10. Re1 {[%clk 0:02:54]}  b6 {[%clk 0:02:58]} 11. h4 {[%clk 0:02:47]}  Bb7 {[%clk 0:02:33]} 12. h5 {[%clk 0:02:37]}  Rc8 {[%clk 0:02:27]} 13. c3 {[%clk 0:02:28]}  Ba6 {[%clk 0:02:25]} 14. Bf1 {[%clk 0:02:12]}  dxe4 {[%clk 0:02:22]} 15. Nxe4 {[%clk 0:02:10]}  Nd5 {[%clk 0:02:02]} 16. Bg5 {[%clk 0:02:06]}  f6 {[%clk 0:01:40]} 17. Bd2 {[%clk 0:02:06]}  g5 {[%clk 0:01:41]} 18. c4 {[%clk 0:01:45]}  Nc7 {[%clk 0:01:34]} 19. Bc3 {[%clk 0:01:30]}  h6 {[%clk 0:01:33]} 20. Bg2 {[%clk 0:01:08]}  e5 {[%clk 0:01:31]} 21. g4 {[%clk 0:01:02]}  Ne6 {[%clk 0:01:31]} 22. Ng3 {[%clk 0:00:59]}  Bb7 {[%clk 0:01:30]} 23. Nh2 {[%clk 0:00:45]}  Qd7 {[%clk 0:01:27]} 24. Nf5 {[%clk 0:00:43]}  Nf4 {[%clk 0:01:23]} 25. Be4 {[%clk 0:00:42]}  Rfd8 {[%clk 0:01:17]} 26. Re3 {[%clk 0:00:40]}  Ne7 {[%clk 0:01:13]} 27. Qb3 {[%clk 0:00:19]}  Nxf5 {[%clk 0:00:47]} 28. Bxf5 {[%clk 0:00:18]}  Qc6 {[%clk 0:00:47]} 29. Be4 {[%clk 0:00:18]}  Qc7 {[%clk 0:00:48]} 30. Qc2 {[%clk 0:00:15]}  Rd6 {[%clk 0:00:40]} 31. Nf1 {[%clk 0:00:14]}  Rcd8 {[%clk 0:00:40]} 32. Ng3 {[%clk 0:00:14]}  Bc8 {[%clk 0:00:37]} 33. f3 {[%clk 0:00:13]}  Be6 {[%clk 0:00:32]} 34. b4 {[%clk 0:00:13]}  axb4 {[%clk 0:00:15]} 35. axb4 {[%clk 0:00:14]}  cxb4 {[%clk 0:00:16]} 36. Bxb4 {[%clk 0:00:14]}  R6d7 {[%clk 0:00:17]} 37. Bc3 {[%clk 0:00:13]}  Bf8 {[%clk 0:00:17]} 38. Kh2 {[%clk 0:00:12]}  Bc5 {[%clk 0:00:18]} 39. Ree1 {[%clk 0:00:12]}  Nxd3 {[%clk 0:00:18]} 40. Red1 {[%clk 0:00:11]}  Nf4 {[%clk 0:00:18]} 41. Nf5 {[%clk 0:00:07]}  Bxf5 {[%clk 0:00:17]} 42. Bxf5 {[%clk 0:00:06]}  Rxd1 {[%clk 0:00:18]} 43. Rxd1 {[%clk 0:00:07]}  Rd6 {[%clk 0:00:18]} 44. Bd2 {[%clk 0:00:04]}  Qd8 {[%clk 0:00:18]} 45. Bh7+ {[%clk 0:00:02]}  Kg7 {[%clk 0:00:18]} 46. Bxf4 {[%clk 0:00:02]}  Rxd1 {[%clk 0:00:16]} 47. Qg6+ {[%clk 0:00:03]}  Kh8 {[%clk 0:00:16]} 48. Qxh6 {[%clk 0:00:03]}  Qf8 {[%clk 0:00:03]} 49. Qg6 {[%clk 0:00:04]}  exf4 {[%clk 0:00:03]} 50. h6 {[%clk 0:00:04]}  Rd7 {[%clk 0:00:03]} 51. Bg8 {[%clk 0:00:03]}  Qxg8 {[%clk 0:00:02]} 52. Qxf6+ {[%clk 0:00:04]}  Kh7 {[%clk 0:00:03]} 53. Qf5+ {[%clk 0:00:05]}  Kxh6 {[%clk 0:00:03]} 54. Qxd7 {[%clk 0:00:05]}  Qg7 {[%clk 0:00:02]} 55. Qc6+ {[%clk 0:00:06]}  Qg6 {[%clk 0:00:02]} 56. Qd5 {[%clk 0:00:06]}  Qc2+ {[%clk 0:00:02]} 57. Kh3 {[%clk 0:00:06]}  Qg6 {[%clk 0:00:02]} 58. Qd2 {[%clk 0:00:06]}  Qd6 {[%clk 0:00:03]} 59. Qc3 {[%clk 0:00:06]}  Kg6 {[%clk 0:00:03]} 60. Qc2+ {[%clk 0:00:06]}  Kg7 {[%clk 0:00:02]} 61. Qf5 {[%clk 0:00:06]}  Qf6 {[%clk 0:00:02]} 62. Qd7+ {[%clk 0:00:06]}  Qf7 {[%clk 0:00:02]} 63. Qc6 {[%clk 0:00:06]}  Kg8 {[%clk 0:00:01]} 64. Qe4 {[%clk 0:00:05]}  Qh7+ {[%clk 0:00:01]} 65. Qxh7+ {[%clk 0:00:05]}  Kxh7 {[%clk 0:00:02]} 66. Kg2 {[%clk 0:00:06]}  Kg6 {[%clk 0:00:03]} 67. Kf1 {[%clk 0:00:07]}  Kf6 {[%clk 0:00:04]} 68. Ke2 {[%clk 0:00:08]}  Ke5 {[%clk 0:00:04]} 69. Kd3 {[%clk 0:00:07]}  Be3 {[%clk 0:00:04]} 0-1